fUSD/lending_fUSD_20240616
["ID","MTS","AMOUNT","RATE_DAILY","PERIOD"]
[329687788,1718575861236,-245.69,0.00020911,2]
[329687789,1718575861263,-1250.0,0.00021,2]
[329687790,1718575861301,-5000.0,0.00021,2]
[329687791,1718575861344,-9129.22847505,0.00021264,2]
[329687792,1718575862179,-994.13487105,0.00021264,2]
[329687793,1718575863231,-1457.89771218,0.00021264,2]
[329687796,1718575863268,-1018.85388693,0.00021264,2]
[329687798,1718575863279,-151.0,0.00021275,2]
[329687799,1718575863300,-32.47611075,0.00021275,2]
[329687802,1718575863327,-118.52388925,0.00021275,2]
[329687805,1718575863353,-154.394726,0.00021275,2]
[329687806,1718575863381,-229.940828,0.00021275,2]
[329687807,1718575863409,-229.940828,0.00021275,2]
[329687808,1718575863448,-245.69,0.0002182,2]
[329687809,1718575863470,-304.9570176,0.0002186,2]
[329687810,1718575863485,-949.0,0.000219,2]
[329687811,1718575863498,-176.31,0.00021918,2]
[329687812,1718575863548,-338.43589027,0.00021918,2]
[329687932,1718575956047,-283.24040768,0.00014375,2]
[329687933,1718575956101,-213.83586991,0.00014376,2]
[329687936,1718576329017,2232.29652304,0.00010782,2]
[329687937,1718576409908,4763.75015336,0.00010782,2]
[329687938,1718576425914,861.29279359,0.00010782,2]
[329687939,1718576453497,180.84144565,0.00010782,2]
[329687940,1718576467473,180.84144565,0.00010782,2]
[329687941,1718576493454,330.67115262,0.00010782,2]
[329687958,1718577033188,-155.0,0.00014145,2]
[329687959,1718577033234,-253.85640308,0.00014146,2]
[329687960,1718577034795,-253.46096836,0.00014146,2]
[329687961,1718577034809,-150.0,0.00014159,2]
[329687962,1718577034828,-9033.55599825,0.0001416,2]
[329687963,1718577034841,-374.61405326,0.00014167,2]
[329687964,1718577034851,-158.92436507,0.0001417,2]
[329687965,1718577034876,-1042.888,0.00014276,2]
[329687966,1718577034888,-757.42395917,0.00016711,2]
[329687967,1718577034901,-179.61,0.00016712,2]
[329687968,1718577034926,-999.99,0.00017,2]
[329687969,1718577034956,-581.35,0.00017044,2]
[329687970,1718577034966,-2488.75759572,0.00017058,2]
[329687971,1718577034977,-499.99,0.00017059,2]
[329687972,1718577034987,-150.99,0.00017059,2]
[329687973,1718577034997,-4407.13,0.00017059,2]
[329687974,1718577035008,-1326.70506017,0.00017059,2]
[329687975,1718577035021,-1240.78981057,0.00017059,2]
[329688088,1718577045935,-155.0,0.00014144,2]
[329688091,1718577045948,-5571.96267622,0.00017059,2]
[329688093,1718577045968,-1901.52481934,0.00017059,2]
[329688098,1718577045996,-481.2146,0.00017059,2]
[329688102,1718577046026,-987.596933,0.00017059,2]
[329688111,1718577046133,-74.88688202,0.00017059,2]
[329688136,1718577046610,-3002.21333241,0.00017059,2]
[329688138,1718577046624,-992.71957658,0.00017059,2]
[329688140,1718577046638,-417.16070969,0.00017059,2]
[329688142,1718577046650,-12575.12081056,0.0001726,2]
[329688145,1718577046664,-10687.08020663,0.0001726,2]
[329688147,1718577046679,-522.809,0.0001726,2]
[329688149,1718577046694,-2973.25998281,0.0001726,2]
[329688151,1718577046716,-229.28,0.00018813,2]
[329688152,1718577046730,-150.0,0.00018978,2]
[329688154,1718577046745,-250.0,0.00018981,2]
[329688155,1718577046772,-500.0,0.00019,10]
[329688157,1718577046783,-1000.0,0.00019052,2]
[329688160,1718577046800,-250.0,0.00019063,2]
[329688161,1718577046812,-1850.97642801,0.00019135,2]
[329688163,1718577047089,-22049.02357199,0.00019135,2]
[329688165,1718577047101,-250.18,0.00019135,2]
[329688166,1718577047114,-200.0,0.0001925,2]
[329688168,1718577047126,-581.35,0.00019308,2]
[329688170,1718577047139,-1500.0,0.00019346,5]
[329688171,1718577047156,-158.4,0.00019423,2]
[329688172,1718577047175,-196.92,0.0001951,2]
[329688173,1718577047205,-177.63,0.00019543,2]
[329688174,1718577047232,-168.99,0.00019887,2]
[329688175,1718577047288,-158.4,0.0001993,2]
[329688176,1718577047306,-550.0,0.0002,15]
[329688177,1718577047351,-226.81877563,0.000201,2]
[329688178,1718577047369,-200.0,0.00020195,2]
[329688179,1718577047381,-1000.0,0.00020363,2]
[329688180,1718577047392,-158.4,0.00020436,2]
[329688181,1718577047421,-1250.0,0.00021,2]
[329688182,1718577047432,-5000.0,0.0002133,2]
[329688184,1718577047457,-3607.78,0.00021331,2]
[329688188,1718577047488,-1000.0,0.00021433,2]
[329688193,1718577047529,-581.35,0.00021572,2]
[329688195,1718577047554,-375.09489421,0.00021755,2]
[329688196,1718577047573,-659.5783,0.00021818,2]
[329688198,1718577047606,-949.01671267,0.000219,2]
[329688199,1718577047617,-1047.64,0.00021918,2]
[329688202,1718577047636,-250.0,0.00021918,2]
[329688203,1718577047649,-389.68198597,0.00021918,2]
[329688207,1718577047689,-28057.38255051,0.00021918,2]
[329688210,1718577047712,-447.56672219,0.00021918,2]
[329688212,1718577047740,-2858.99421,0.00021918,2]
[329688213,1718577047772,-158.92436507,0.00022026,2]
[329688214,1718577047785,-5862.522253,0.00022096,2]
[329688217,1718577047808,-71897.35015321,0.00022096,2]
[329688219,1718577047829,-311.62064007,0.00022096,2]
[329688243,1718577048430,-3168.98365127,0.00022096,2]
[329688244,1718577048458,-6202.11978773,0.00022096,2]
[329688245,1718577048472,-35015.24640162,0.00022096,2]
[329688246,1718577048497,-3639.768,0.00022126,2]
[329688247,1718577048533,-12600.11494521,0.00022491,2]
[329688248,1718577048559,-176.31,0.00022888,2]
[329688249,1718577048571,-1300.0,0.00023,2]
[329688250,1718577048585,-249.60854914,0.00023151,2]
[329688251,1718577048598,-200.0,0.00023171,2]
[329688252,1718577048624,-12600.11494521,0.00023718,2]
[329688253,1718577048637,-1000.0,0.00023815,2]
[329688254,1718577048665,-581.35,0.00023836,2]
[329688255,1718577048680,-2059.47906552,0.000241,2]
[329688256,1718577048694,-1603.33354918,0.0002413,2]
[329688257,1718577048709,-5000.0,0.00024195,2]
[329688258,1718577048736,-180.0,0.0002423,2]
[329688259,1718577048767,-282.1196435,0.00024382,2]
[329688260,1718577048789,-150.13,0.00024384,2]
[329688261,1718577048808,-285.25,0.00024384,2]
[329688262,1718577048819,-153.2,0.00024384,2]
[329688263,1718577048859,-521.6,0.00024384,2]
[329688264,1718577048896,-171.719214,0.00024455,2]
[329688265,1718577048912,-1576.012593,0.00024455,2]
[329688266,1718577048936,-161.469333,0.00024455,2]
[329688267,1718577048988,-180.999397,0.00024455,2]
[329688268,1718577049001,-158.943118,0.00024455,2]
[329688269,1718577049029,-176.826941,0.00024455,2]
[329688270,1718577049053,-2804.143649,0.00024455,2]
[329688271,1718577049065,-5000.0,0.00024484,2]
[329688272,1718577049076,-2816.62132469,0.0002455,3]
[329688273,1718577049091,-1000.0,0.00024599,2]
[329688274,1718577049103,-500.0,0.00024599,2]
[329688275,1718577049115,-200.0,0.00024599,2]
[329688276,1718577049128,-1000.0,0.000246,2]
[329688277,1718577049140,-500.0,0.000246,2]
[329688278,1718577049164,-500.0,0.000246,2]
[329688279,1718577049176,-200.0,0.000246,2]
[329688280,1718577049188,-1559.971896,0.000246,2]
[329688281,1718577049209,-156.19690756,0.00024656,2]
[329688282,1718577049236,-10000.0,0.0002468,2]
[329688283,1718577049257,-321.78425917,0.00024699,2]
[329688284,1718577049275,-291.0,0.000247,2]
[329688285,1718577049288,-150.0,0.000247,4]
[329688286,1718577049300,-1576.012593,0.0002476,2]
[329688287,1718577049312,-2804.143649,0.0002476,2]
[329688288,1718577049328,-150.0,0.0002479,2]
[329688289,1718577049345,-3376.9683763,0.00024791,2]
[329688290,1718577049357,-23421.7491465,0.00024791,2]
[329688291,1718577049368,-208.99062426,0.00024797,2]
[329688292,1718577049399,-2534.68662982,0.00024797,2]
[329688293,1718577049432,-879.30463729,0.00024798,4]
[329688294,1718577049462,-500.0,0.00024798,2]
[329688295,1718577049478,-500.0,0.00024798,2]
[329688296,1718577049503,-500.0,0.00024798,2]
[329688297,1718577049517,-797.0,0.00024798,2]
[329688298,1718577049538,-13738.0940536,0.00024799,2]
[329688299,1718577049555,-13738.09405354,0.00024799,2]
[329688300,1718577049568,-13738.09405354,0.00024799,2]
[329688301,1718577049581,-13738.09405354,0.00024799,2]
[329688302,1718577049605,-13738.09405354,0.00024799,2]
[329688303,1718577049632,-1000.0,0.000248,2]
[329688304,1718577049644,-3702.063,0.00024808,2]
[329688305,1718577049664,-3653.018,0.00024808,2]
[329688306,1718577049677,-3707.208,0.00024809,2]
[329688307,1718577049689,-155.71763945,0.0002488,2]
[329688308,1718577049728,-2500.0,0.000249,2]
[329688309,1718577049739,-6417.44448896,0.00024945,2]
[329688310,1718577049778,-346.772,0.00024425,2]
[329688311,1718577049824,-6182.67045625,0.00024945,2]
[329688312,1718577049853,-1781.91195369,0.00025,2]
[329688313,1718577049864,-150.539,0.00025,2]
[329688314,1718577049880,-1350.0,0.00025,2]
[329688315,1718577049891,-1278.56167909,0.00025,2]
[329688316,1718577049903,-170.0,0.00025,2]
[329688317,1718577049915,-7432.2410971,0.0002501,2]
[329688318,1718577049941,-13738.09405354,0.00025012,2]
[329688319,1718577049964,-150.0,0.00025041,2]
[329688320,1718577049975,-328.7,0.00025041,2]
[329688321,1718577049986,-1576.012593,0.00025066,2]
[329688322,1718577049997,-2804.143649,0.00025066,2]
[329688323,1718577050008,-151.0,0.00025098,7]
[329688324,1718577050019,-5000.0,0.000251,10]
[329688325,1718577050034,-151.0,0.00025119,4]
[329688326,1718577050053,-150.0,0.000252,4]
[329688327,1718577050064,-1576.012593,0.00025372,2]
[329688328,1718577050089,-2804.143649,0.00025372,2]
[329688329,1718577050102,-1000.0,0.000254,2]
[329688330,1718577050121,-2409.0,0.00025495,2]
[329688331,1718577050135,-487.0460996,0.00025495,2]
[329688332,1718577050190,-2708.9539004,0.00025495,2]
[329688333,1718577050202,-1981.0,0.00025495,2]
[329688334,1718577050221,-19185.84283941,0.00025495,2]
[329688335,1718577050234,-361.30175886,0.00025495,2]
[329688336,1718577050260,-432.05266282,0.00025495,2]
[329688341,1718577050544,-1775.17468811,0.00024143,2]
[329688344,1718577050581,-4359.2753119,0.00025495,2]
[329688346,1718577050605,-426.69999987,0.00025495,2]
[329688351,1718577050656,-1810.87142714,0.00025495,2]
[329688353,1718577050690,-3370.88999207,0.00025495,2]
[329688920,1718577224443,11167.06607841,0.00014,2]
[329688921,1718577270163,733.29699166,6.94e-05,2]
[329688922,1718577289946,10000.0,0.00027,30]
[329688940,1718578044927,700.0,0.000136,4]
[329688941,1718578047291,1400.0,0.000137,5]
[329688943,1718578233753,-1333.8,0.00013799,2]
[329688944,1718578233766,-3286.13338365,0.00013799,2]
[329688945,1718578233778,-421.68129104,0.000138,5]
[329688946,1718578233808,-893.88077685,0.000138,5]
[329688947,1718578233841,-463.7839458,0.000138,5]
[329688948,1718578233877,-337.21932,0.000138,5]
[329688949,1718578233894,-83.43466631,0.000138,5]
[329688950,1718578233912,-150.0,0.00013899,2]
[329688951,1718578233929,-12462.1729,0.000139,2]
[329688952,1718578233942,-1000.0,0.000139,2]
[329688953,1718578233964,-2900.0,0.000139,5]
[329688954,1718578233976,-2500.0,0.000139,2]
[329688955,1718578234008,-321.78425915,0.000139,2]
[329688956,1718578234019,-150.0,0.00013973,2]
[329688957,1718578234049,-16750.98752854,0.00014,2]
[329688958,1718578234304,-310.0,0.00014,2]
[329688967,1718578239993,-468.82830959,0.000139,2]
[329688968,1718578240010,-1565.74596654,0.000139,2]
[329688969,1718578240518,-1489.19260133,0.000139,2]
[329689131,1718578245473,-375.15190667,0.000139,2]
[329689132,1718578245505,-1280.84626254,0.000139,2]
[329689133,1718578245855,-1710.79765563,0.000139,2]
[329689134,1718578245874,-2552.63848332,0.000139,2]
[329689135,1718578245887,-487.45381385,0.00014,2]
[329689136,1718578245900,-5710.10235772,0.00014,2]
[329689192,1718578250958,-2500.0,0.000139,2]
[329689194,1718578250977,-31914.39832049,0.00014,2]
[329689197,1718578252000,-1986.88065894,0.00014,2]
[329689198,1718578252418,-747.54487454,0.00014,2]
[329689199,1718579219733,300.0,0.000136,4]
[329689200,1718579221830,700.0,0.000137,5]
[329689222,1718579434418,-155.0,0.00013798,2]
[329689223,1718579434435,-231.9241814,0.00013799,2]
[329689224,1718579434528,-238.13099638,0.00013799,2]
[329689225,1718579434548,-1000.0,0.000138,2]
[329689226,1718579434597,-363.29926489,0.000138,5]
[329689227,1718579435076,-736.70073511,0.000138,5]
[329689228,1718579435132,-69.35620302,0.000138,2]
[329689229,1718579435417,-2245.15794777,0.000138,2]
[329689230,1718579435477,-185.48584921,0.000138,2]
[329689231,1718579435503,-5571.9627,0.000138,2]
[329689232,1718579435534,-219.83,0.0001389,3]
[329689233,1718579435547,-197.81765627,0.000139,2]
[329689234,1718579435558,-1969.9327,0.000139,2]
[329689235,1718579435592,-2100.01915759,0.000139,2]
[329689236,1718579435609,-9374.1776,0.000139,2]
[329689237,1718579435621,-500.0,0.000139,2]
[329689238,1718579435657,-242568.5974,0.000139,2]
[329689239,1718579435668,-155.82602235,0.000139,2]
[329689240,1718579435693,-1500.0,0.000139,5]
[329689241,1718579435716,-6295.46745708,0.000139,2]
[329689242,1718579435744,-9458.30509181,0.000139,2]
[329689243,1718579435760,-393.84278758,0.000139,2]
[329689244,1718579435777,-1433.0831962,0.000139,2]
[329689245,1718579435797,-152.4785088,0.000139,2]
[329689246,1718579435818,-187.10394976,0.000139,2]
[329689247,1718579435831,-320.5994234,0.000139,2]
[329689249,1718579435845,-260.21570863,0.0001399,2]
[329689250,1718579435862,-263.91864438,0.00013998,2]
[329689252,1718579435884,-562.72101007,0.00013998,2]
[329689253,1718579435897,-250.40672508,0.00013998,2]
[329689254,1718579435920,-3389.45183201,0.00013999,2]
[329689255,1718579435934,-356264.56357997,0.00014,2]
[329689258,1718579440919,-1063.62414582,0.00014,2]
[329689259,1718579440932,-272125.30671501,0.00014,2]
[329689260,1718579440963,-1091453.0742954,0.00014,2]
[329689297,1718579445804,-464.67432112,0.00014,2]
[329689298,1718579445818,-611.85877475,0.00014,2]
[329689305,1718579448460,-417.70024587,0.00014,2]
[329689306,1718579448884,-2066.06392,0.00014,2]
[329689307,1718579448898,-4421.681523,0.00014,2]
[329689308,1718579448917,-1032.03633458,0.00014,2]
[329689309,1718579448931,-1239.63437976,0.00014,2]
[329689310,1718579448958,-11114.854409,0.00014,2]
[329689311,1718579449335,-3082.54805869,0.00014,2]
[329689312,1718579449354,-329.34405355,0.00014,2]
[329689313,1718579449375,-5000.51833819,0.00014,2]
[329689314,1718579449396,-4803.45941549,0.00014,2]
[329689315,1718579449409,-2957.21493839,0.00014,2]
[329689316,1718579449422,-313.99159286,0.00014,2]
[329689317,1718579449434,-783.470684,0.00014,2]
[329689319,1718579449823,-155.51523385,0.00013999,2]
[329689321,1718579449837,-39844.75973615,0.00014,2]
[329689323,1718579449863,-868.4459603,0.00014,2]
[329689383,1718579483349,321.799397,0.000105,2]
[329689384,1718579485566,302.24547736,0.00012599,2]
[329689386,1718579663921,475.47185481,0.00013758,2]
[329689387,1718579790280,685.8544,0.000137,2]
[329689388,1718579832977,3874.2394,0.000137,2]
[329689390,1718580035208,558.13,0.00012279,2]
[329689391,1718580080284,186.0471,0.000137,2]
[329689392,1718580215608,155.0,0.0001376,2]
[329689394,1718580228580,2353.46210869,0.0001376,2]
[329689395,1718580229064,546.38140668,0.0001376,2]
[329689397,1718580342344,1965.62,0.00013443,2]
[329689399,1718580451813,203.19,0.00013699,2]
[329689400,1718580471239,4753.09773371,0.00013377,2]
[329689401,1718580471315,19146.90226629,0.00013377,2]
[329689402,1718580503942,1000.0,0.00013382,2]
[329689403,1718580520757,66.93360362,0.000134,2]
[329689404,1718580520865,243.85639638,0.000134,2]
[329689406,1718580634723,-522.18870084,0.00013796,2]
[329689407,1718580634738,-167.24661722,0.00013796,2]
[329689408,1718580634751,-150.0,0.00013797,2]
[329689409,1718580634773,-9229.5095193,0.00013798,2]
[329689410,1718580634786,-162.80706654,0.00013798,2]
[329689411,1718580634812,-413.81519275,0.00013798,2]
[329689412,1718580634827,-942.20763815,0.00013798,2]
[329689413,1718580634839,-156.78906714,0.00013799,2]
[329689414,1718580634851,-1794.9987264,0.00013799,2]
[329689415,1718580634870,-39374.0891,0.000138,2]
[329689416,1718580634905,-100000.0,0.000138,2]
[329689417,1718580634942,-500.0,0.000138,2]
[329689418,1718580634957,-1000.0,0.000138,2]
[329689419,1718580634969,-300.0,0.000138,5]
[329689420,1718580635004,-159.59,0.00013802,2]
[329689421,1718580635028,-4071.42506988,0.000139,2]
[329689422,1718580635057,-1486.44042157,0.000139,2]
[329689423,1718580635070,-156.77732302,0.000139,2]
[329689424,1718580635100,-1000.0,0.000139,2]
[329689425,1718580635111,-700.0,0.000139,5]
[329689426,1718580635130,-2500.0,0.000139,2]
[329689427,1718580635148,-175.48904367,0.000139,2]
[329689428,1718580635159,-350.35081611,0.000139,2]
[329689429,1718580635190,-1546.73418164,0.000139,2]
[329689430,1718580635227,-341.83424121,0.000139,2]
[329689431,1718580635241,-150.0,0.00013977,2]
[329689432,1718580635252,-250.0,0.00013977,2]
[329689433,1718580635266,-179.432724,0.0001399,2]
[329689434,1718580635283,-4351.26,0.00013999,2]
[329689435,1718580635327,-409.85937535,0.00013999,2]
[329689436,1718580635341,-1419.65507534,0.00013999,2]
[329689437,1718580635368,-39253.31855756,0.00014,2]
[329689438,1718580635385,-1132.51470823,0.00014,2]
[329689447,1718580640617,-86871.6213431,0.00014,2]
[329689448,1718580640631,-1002.20146567,0.00014,2]
[329689449,1718580640925,-1996.19291569,0.00014,2]
[329689450,1718580640940,-355.4625208,0.00014,2]
[329689451,1718580640977,-1084.17957934,0.00014,2]
[329689452,1718580641038,-424.88308538,0.00014,2]
[329689453,1718580641066,-3450.49798637,0.00014,2]
[329689454,1718580641101,-298.9533,0.00014,2]
[329689455,1718580641133,-2199.22889,0.00014,2]
[329689456,1718580641153,-274090.92671501,0.00014,2]
[329689457,1718580641181,-721441.77062246,0.00014,2]
[329689458,1718580641230,-150.99,0.00014,2]
[329689459,1718580641260,-499.99,0.00014,2]
[329689460,1718580641311,-2382.49518,0.00014,2]
[329689461,1718580641338,-2382.49518,0.0001405,2]
[329689462,1718580641381,-162.3,0.00014105,2]
[329689463,1718580641392,-162.3,0.00014178,2]
[329689464,1718580641407,-162.3,0.00014252,2]
[329689465,1718580641430,-162.3,0.00014325,2]
[329689466,1718580641449,-2382.49519,0.0001436,2]
[329689467,1718580641501,-162.3,0.00014399,2]
[329689469,1718580641529,-999.99,0.000144,2]
[329689472,1718580641566,-4236.83,0.000144,2]
[329689473,1718580641581,-162.3,0.00014472,2]
[329689476,1718580641640,-558.13,0.00014543,2]
[329689477,1718580641658,-162.3,0.00014546,2]
[329689478,1718580641676,-162.3,0.00014619,2]
[329689479,1718580641707,-2382.49518,0.0001467,2]
[329689480,1718580641742,-162.3,0.00014693,2]
[329689481,1718580641754,-184.85512183,0.000147,2]
[329689482,1718580641770,-162.3,0.00014766,2]
[329689483,1718580641782,-162.3,0.0001484,2]
[329689484,1718580641807,-250.0,0.00014893,2]
[329689485,1718580641829,-2382.49519,0.0001498,2]
[329689486,1718580641845,-246389.64116805,0.00015,2]
[329689487,1718580641862,-1000.0,0.00015054,2]
[329689488,1718580641880,-4071.42506977,0.00015127,2]
[329689489,1718580641897,-2382.49518,0.000153,2]
[329689490,1718580641920,-188.885818,0.00015342,2]
[329689491,1718580641936,-1486.44042151,0.00015814,2]
[329689492,1718580641954,-310.79,0.0001614,2]
[329689493,1718580641972,-188.885818,0.00016164,2]
[329689494,1718580641985,-4071.42506977,0.00016355,2]
[329689495,1718580642009,-1337.76,0.00016438,2]
[329689496,1718580642048,-152.4785088,0.000166,2]
[329689497,1718580642080,-1000.0,0.00016727,2]
[329689498,1718580642096,-558.13,0.00016807,2]
[329689499,1718580642131,-172.01,0.00016876,2]
[329689500,1718580642159,-172.01,0.0001688,2]
[329689501,1718580642191,-172.01,0.00016885,2]
[329689502,1718580642218,-172.01,0.00016889,2]
[329689503,1718580642238,-172.01,0.00016894,2]
[329689504,1718580642256,-172.01,0.00016898,2]
[329689505,1718580642281,-172.01,0.00016902,2]
[329689506,1718580642294,-172.01,0.00016907,2]
[329689507,1718580642340,-172.01,0.00016911,2]
[329689508,1718580642352,-172.01,0.00016916,2]
[329689509,1718580642364,-172.01,0.0001692,2]
[329689510,1718580642396,-172.01,0.00016925,2]
[329689511,1718580642415,-172.01,0.00016929,2]
[329689512,1718580642444,-172.01,0.00016933,2]
[329689513,1718580642463,-172.01,0.00016938,2]
[329689514,1718580642523,-172.01,0.00016942,2]
[329689515,1718580642549,-172.01,0.00016947,2]
[329689516,1718580642563,-172.01,0.00016951,2]
[329689517,1718580642576,-172.01,0.00016956,2]
[329689518,1718580642588,-172.01,0.0001696,2]
[329689519,1718580642606,-188.885818,0.00016986,2]
[329689520,1718580642633,-350.35081611,0.0001712,2]
[329689521,1718580642645,-172.4,0.00017123,2]
[329689522,1718580642657,-4071.42506977,0.00017582,2]
[329689523,1718580642678,-1486.44042151,0.00017728,2]
[329689524,1718580642689,-188.885818,0.00017808,2]
[329689525,1718580642703,-1000.0,0.000184,2]
[329689526,1718580642715,-188.885818,0.0001863,2]
[329689527,1718580642744,-4071.42506977,0.00018809,2]
[329689528,1718580642780,-310.79,0.00018879,2]
[329689529,1718580642795,-558.13,0.00019071,2]
[329689530,1718580642816,-370.24845285,0.00019178,2]
[329689531,1718580642833,-1500.0,0.00019178,5]
[329689532,1718580642844,-203.19,0.00019178,2]
[329689533,1718580642873,-152.4785088,0.000193,2]
[329689534,1718580642886,-188.885818,0.00019452,2]
[329689535,1718580642906,-1486.44042151,0.00019642,2]
[329689536,1718580642918,-166.21,0.00019781,2]
[329689537,1718580642940,-500.31962117,0.00019808,2]
[329689538,1718580642960,-151.97,0.00019995,2]
[329689539,1718580642976,-446.84102675,0.0002,2]
[329689540,1718580643005,-339.77898231,0.0002,2]
[329689541,1718580643042,-15539.66643481,0.0002,2]
[329689542,1718580643054,-4071.42506977,0.00020036,2]
[329689543,1718580643066,-1000.0,0.00020072,2]
[329689544,1718580643084,-226.81877563,0.000201,2]
[329689545,1718580643104,-188.885818,0.00020274,2]
[329689546,1718580643120,-350.35081611,0.0002034,2]
[329689547,1718580643132,-220.36,0.00020416,2]
[329689548,1718580643143,-341.8342412,0.0002065,2]
[329689549,1718580643189,-1250.0,0.00021,2]
[329689550,1718580643205,-188.885818,0.00021096,2]
[329689551,1718580643236,-1462.0,0.000211,2]
[329689552,1718580643254,-1000.0,0.000212,2]
[329689553,1718580643284,-4071.42506977,0.00021264,2]
[329689554,1718580643300,-558.13,0.00021335,2]
[329689555,1718580643315,-1486.44042151,0.00021555,2]
[329689556,1718580643344,-417.77,0.00021753,2]
[329689557,1718580643358,-851.56,0.00021753,2]
[329689558,1718580643377,-179.13,0.00021918,2]
[329689559,1718580643399,-250.0,0.00021918,2]
[329689560,1718580643420,-873.03,0.00021918,2]
[329689561,1718580643447,-497.71766581,0.00022,10]
[329689562,1718580643459,-152.4785088,0.00022,2]
[329689563,1718580643484,-3605.653,0.00022023,2]
[329689564,1718580643503,-2000.0,0.00022192,3]
[329689565,1718580643517,-1000.0,0.00022266,2]
[329689566,1718580643530,-3624.994,0.00022277,2]
[329689567,1718580643543,-4071.42506977,0.00022491,2]
[329689568,1718580643576,-164.35,0.00022575,2]
[329689569,1718580643590,-258.06,0.00022575,2]
[329689571,1718580643604,-150.0,0.00022575,2]
[329689573,1718580643636,-150.0,0.00022575,2]
[329689574,1718580643658,-526.85,0.00022575,2]
[329689575,1718580643670,-353.88,0.00022575,2]
[329689576,1718580643688,-164.41,0.00022575,2]
[329689577,1718580643711,-423.19,0.00022575,2]
[329689578,1718580643722,-423.19,0.00022575,2]
[329689579,1718580643740,-164.41,0.00022575,2]
[329689580,1718580643762,-150.0,0.00022575,2]
[329689581,1718580643780,-150.0,0.00022575,2]
[329689582,1718580643810,-353.88,0.00022575,2]
[329689583,1718580643823,-423.19,0.00022575,2]
[329689584,1718580643839,-150.0,0.00022575,2]
[329689585,1718580643852,-353.88,0.00022575,2]
[329689586,1718580643866,-164.41,0.00022575,2]
[329689587,1718580643878,-150.0,0.00022575,2]
[329689588,1718580643892,-423.19,0.00022575,2]
[329689589,1718580643941,-150.0,0.00022575,2]
[329689590,1718580643969,-164.41,0.00022575,2]
[329689591,1718580643994,-150.0,0.00022575,2]
[329689592,1718580644013,-353.88,0.00022575,2]
[329689593,1718580644025,-150.0,0.00022575,2]
[329689594,1718580644049,-423.19,0.00022575,2]
[329689595,1718580644062,-164.41,0.00022575,2]
[329689596,1718580644091,-150.0,0.00022575,2]
[329689597,1718580644119,-353.88,0.00022575,2]
[329689598,1718580644154,-422.11,0.00022575,2]
[329689609,1718580644429,-353.88,0.00022575,2]
[329689612,1718580644468,-164.41,0.00022575,2]
[329689614,1718580644482,-150.0,0.00022575,2]
[329689616,1718580644494,-323.45,0.00022575,2]
[329689618,1718580644507,-164.41,0.00022575,2]
[329689619,1718580644527,-150.0,0.00022575,2]
[329689621,1718580644542,-353.88,0.00022575,2]
[329689623,1718580644572,-150.0,0.00022575,2]
[329689625,1718580644585,-164.41,0.00022575,2]
[329689627,1718580644598,-353.88,0.00022575,2]
[329689629,1718580644617,-353.88,0.00022575,2]
[329689631,1718580644628,-157.92,0.00022575,2]
[329689633,1718580644656,-322.71,0.00022575,2]
[329689635,1718580644676,-3667.077,0.00022651,2]
[329689637,1718580644688,-871.54620548,0.000229,8]
[329689647,1718580645141,-228.45379452,0.000229,8]
[329689648,1718580645155,-260.71923948,0.00023,2]
[329689649,1718580646306,-188.885818,0.00021918,2]
[329689650,1718580646318,-188.885818,0.0002274,2]
[329689651,1718580646331,-1039.28076052,0.00023,2]